[Event "*** Titled Tuesday Blitz"]
[Site "Chess.com"]
[Date "2020.04.21"]
[Round "8"]
[White "JoakimVonAnd"]
[Black "Kobalia"]
[Result "0-1"]
[WhiteElo "2524"]
[BlackElo "2719"]
[TimeControl "180+1"]
[EndTime "11:40:08 PDT"]
[Termination "Kobalia won by resignation"]

1. d4 {[%clk 0:03:00.9]} 1... d5 {[%clk 0:02:59.2]} 2. c4 {[%clk 0:03:00.5]}
2... c6 {[%clk 0:02:59]} 3. cxd5 {[%clk 0:03:00.7]} 3... cxd5 {[%clk 0:02:58.6]}
4. Nc3 {[%clk 0:03:01.3]} 4... e6 {[%clk 0:02:58.4]} 5. Bf4 {[%clk 0:02:58.9]}
5... Bd6 {[%clk 0:02:58]} 6. Bg3 {[%clk 0:02:58.4]} 6... Ne7 {[%clk 0:02:57.1]}
7. e3 {[%clk 0:02:58.2]} 7... Nf5 {[%clk 0:02:53.2]} 8. Bd3 {[%clk 0:02:58.1]}
8... Nxg3 {[%clk 0:02:53.1]} 9. hxg3 {[%clk 0:02:57.4]} 9... Nc6 {[%clk
0:02:52.1]} 10. Nf3 {[%clk 0:02:54.5]} 10... Bd7 {[%clk 0:02:50.7]} 11. Rc1
{[%clk 0:02:53.9]} 11... Qe7 {[%clk 0:02:44.2]} 12. a3 {[%clk 0:02:51.1]} 12...
f5 {[%clk 0:02:36.9]} 13. Nd2 {[%clk 0:02:27.3]} 13... g6 {[%clk 0:02:21.6]} 14.
g4 {[%clk 0:02:12.2]} 14... O-O-O {[%clk 0:02:19.4]} 15. gxf5 {[%clk 0:02:09.1]}
15... gxf5 {[%clk 0:02:18.5]} 16. g3 {[%clk 0:01:59.8]} 16... Kb8 {[%clk
0:02:17.8]} 17. Na4 {[%clk 0:01:52.5]} 17... h5 {[%clk 0:02:07.2]} 18. Nc5
{[%clk 0:01:51.6]} 18... h4 {[%clk 0:02:03.3]} 19. Rxh4 {[%clk 0:01:40.6]} 19...
Rxh4 {[%clk 0:02:02.1]} 20. gxh4 {[%clk 0:01:41.5]} 20... Bxc5 {[%clk
0:02:00.9]} 21. Rxc5 {[%clk 0:01:39.7]} 21... Qxh4 {[%clk 0:02:00.1]} 22. Nf3
{[%clk 0:01:40]} 22... Qh3 {[%clk 0:01:51.1]} 23. Ke2 {[%clk 0:01:34.6]} 23...
Be8 {[%clk 0:01:46.4]} 24. Qf1 {[%clk 0:01:33.5]} 24... Qg4 {[%clk 0:01:41.8]}
25. Qg1 {[%clk 0:00:32.8]} 25... Bh5 {[%clk 0:01:39.6]} 26. Qxg4 {[%clk
0:00:30]} 26... Bxg4 {[%clk 0:01:38.8]} 27. Rc1 {[%clk 0:00:08.9]} 27... Rh8
{[%clk 0:01:16.8]} 28. Rg1 {[%clk 0:00:07.7]} 28... Rh3 {[%clk 0:01:16.4]} 29.
Rxg4 {[%clk 0:00:07.9]} 29... fxg4 {[%clk 0:01:15.7]} 30. Ng5 {[%clk 0:00:08.8]}
30... Rh6 {[%clk 0:00:54.4]} 31. Kf1 {[%clk 0:00:08.1]} 31... Nd8 {[%clk
0:00:37.1]} 32. Kg2 {[%clk 0:00:08.1]} 32... Rh5 {[%clk 0:00:36.7]} 33. Nh7
{[%clk 0:00:07.7]} 33... Nf7 {[%clk 0:00:31.3]} 34. Nf6 {[%clk 0:00:07.8]} 34...
Rg5 {[%clk 0:00:25.9]} 35. Kg3 {[%clk 0:00:08]} 35... Nh6 {[%clk 0:00:24.7]} 36.
Kf4 {[%clk 0:00:07.5]} 36... Rg7 {[%clk 0:00:24.5]} 37. Nh5 {[%clk 0:00:05.8]}
37... Rf7+ {[%clk 0:00:20.4]} 38. Kg5 {[%clk 0:00:06.1]} 38... Nf5 {[%clk
0:00:15.1]} 39. Kxg4 {[%clk 0:00:05.4]} 39... Kc7 {[%clk 0:00:14.1]} 40. Nf4
{[%clk 0:00:05.3]} 40... Kd6 {[%clk 0:00:14]} 41. Kf3 {[%clk 0:00:04.1]} 41...
Rh7 {[%clk 0:00:12.3]} 42. Ke2 {[%clk 0:00:04.6]} 42... Rh1 {[%clk 0:00:11.9]}
43. Kd2 {[%clk 0:00:02.3]} 43... a6 {[%clk 0:00:11.2]} 44. Be2 {[%clk
0:00:01.2]} 44... Rh2 {[%clk 0:00:10.5]} 45. Bd3 {[%clk 0:00:01.6]} 45... Rxf2+
{[%clk 0:00:08.6]} 46. Kc3 {[%clk 0:00:02.5]} 46... b5 {[%clk 0:00:07.1]} 47.
Bxf5 {[%clk 0:00:02.2]} 47... exf5 {[%clk 0:00:06.9]} 48. Nd3 {[%clk 0:00:03.1]}
48... Re2 {[%clk 0:00:06.1]} 49. Nf4 {[%clk 0:00:02.6]} 49... Rxe3+ {[%clk
0:00:06]} 50. Kd2 {[%clk 0:00:03.5]} 50... Re4 {[%clk 0:00:06.1]} 51. Ne2 {[%clk
0:00:04.4]} 51... f4 {[%clk 0:00:05.6]} 52. Kd3 {[%clk 0:00:04.9]} 52... f3
{[%clk 0:00:05.7]} 53. Ng3 {[%clk 0:00:05.8]} 53... f2 {[%clk 0:00:05.9]} 54.
Nxe4+ {[%clk 0:00:05.7]} 54... dxe4+ {[%clk 0:00:06.1]} 55. Ke2 {[%clk
0:00:06.6]} 55... e3 {[%clk 0:00:06.4]} 56. Kf1 {[%clk 0:00:06.8]} 56... Kd5
{[%clk 0:00:06.8]} 57. Ke2 {[%clk 0:00:07.7]} 57... Kxd4 {[%clk 0:00:07.5]} 58.
b3 {[%clk 0:00:08.6]} 58... Ke4 {[%clk 0:00:07.9]} 59. a4 {[%clk 0:00:09.5]}
59... bxa4 {[%clk 0:00:08.1]} 60. bxa4 {[%clk 0:00:10.4]} 60... Kf4 {[%clk
0:00:08.1]} 61. a5 {[%clk 0:00:10.3]} 61... Ke4 {[%clk 0:00:08.7]} 62. Kf1
{[%clk 0:00:10.9]} 62... Kd3 {[%clk 0:00:09.3]} 63. Kg2 {[%clk 0:00:10.8]} 63...
Kd2 {[%clk 0:00:10.1]} 64. Kg3 {[%clk 0:00:11.7]} 64... e2 {[%clk 0:00:10.8]}
0-1

[Event "*** Titled Tuesday Blitz"]
[Site "Chess.com"]
[Date "2020.04.21"]
[Round "8"]
[White "albi1999"]
[Black "obliviate12"]
[Result "1/2-1/2"]
[WhiteElo "2611"]
[BlackElo "2763"]
[TimeControl "180+1"]
[EndTime "11:40:18 PDT"]
[Termination "Game drawn by stalemate"]

1. d4 {[%clk 0:03:00.9]} 1... Nf6 {[%clk 0:02:59.2]} 2. c4 {[%clk 0:02:59.2]}
2... g6 {[%clk 0:02:59.2]} 3. g3 {[%clk 0:02:57.9]} 3... Bg7 {[%clk 0:02:58.9]}
4. Bg2 {[%clk 0:02:58.5]} 4... O-O {[%clk 0:02:58.3]} 5. Nc3 {[%clk 0:02:59]}
5... c6 {[%clk 0:02:53.3]} 6. Nf3 {[%clk 0:02:52.4]} 6... d5 {[%clk 0:02:51.2]}
7. cxd5 {[%clk 0:02:53.3]} 7... cxd5 {[%clk 0:02:50.7]} 8. Ne5 {[%clk
0:02:48.4]} 8... Nfd7 {[%clk 0:02:42.7]} 9. Nf3 {[%clk 0:02:36.8]} 9... e6
{[%clk 0:02:38.9]} 10. O-O {[%clk 0:02:35.8]} 10... Nc6 {[%clk 0:02:38.9]} 11.
b3 {[%clk 0:02:18]} 11... Re8 {[%clk 0:02:22.6]} 12. Bb2 {[%clk 0:02:14.3]}
12... Nf6 {[%clk 0:02:19.4]} 13. Rc1 {[%clk 0:02:12.8]} 13... Bd7 {[%clk
0:02:19.3]} 14. e3 {[%clk 0:02:11.2]} 14... Rc8 {[%clk 0:02:19.3]} 15. Qe2
{[%clk 0:02:11.3]} 15... Qa5 {[%clk 0:02:18.8]} 16. Qd2 {[%clk 0:02:01.6]} 16...
Bf8 {[%clk 0:02:16.6]} 17. Qe2 {[%clk 0:01:34.5]} 17... Ba3 {[%clk 0:02:05.2]}
18. Na4 {[%clk 0:01:30.3]} 18... Bxb2 {[%clk 0:02:01.6]} 19. Qxb2 {[%clk
0:01:31.2]} 19... b6 {[%clk 0:01:54.2]} 20. Nc3 {[%clk 0:01:30.4]} 20... Rc7
{[%clk 0:01:36.3]} 21. a3 {[%clk 0:01:21.6]} 21... Qa6 {[%clk 0:01:22.5]} 22.
Rc2 {[%clk 0:01:19.2]} 22... Rec8 {[%clk 0:01:07.7]} 23. Rfc1 {[%clk 0:01:17.8]}
23... Ne8 {[%clk 0:01:07.9]} 24. Bf1 {[%clk 0:01:16.8]} 24... Qb7 {[%clk
0:01:07]} 25. Nb5 {[%clk 0:01:15.5]} 25... Ne7 {[%clk 0:01:02.8]} 26. Nxc7
{[%clk 0:01:12.9]} 26... Rxc7 {[%clk 0:01:03.6]} 27. Rxc7 {[%clk 0:01:12.3]}
27... Nxc7 {[%clk 0:01:04.5]} 28. Qc3 {[%clk 0:01:07.7]} 28... Ne8 {[%clk
0:01:05.4]} 29. Ne5 {[%clk 0:01:04.5]} 29... Bc8 {[%clk 0:01:04]} 30. Bb5 {[%clk
0:01:01.2]} 30... Nd6 {[%clk 0:01:04.2]} 31. Bc6 {[%clk 0:00:53.6]} 31... Qc7
{[%clk 0:01:04.1]} 32. Bd7 {[%clk 0:00:46.9]} 32... Qxc3 {[%clk 0:01:01.3]} 33.
Rxc3 {[%clk 0:00:47.8]} 33... Bxd7 {[%clk 0:01:02.2]} 34. Nxd7 {[%clk
0:00:48.2]} 34... Nb5 {[%clk 0:01:02.7]} 35. Rc1 {[%clk 0:00:41.5]} 35... Nxa3
{[%clk 0:01:01.6]} 36. Rc7 {[%clk 0:00:36.3]} 36... Nb5 {[%clk 0:01:01.2]} 37.
Rb7 {[%clk 0:00:28.1]} 37... Nf5 {[%clk 0:00:54.7]} 38. Ne5 {[%clk 0:00:21.7]}
38... Nfd6 {[%clk 0:00:53.9]} 39. Rd7 {[%clk 0:00:21.2]} 39... h5 {[%clk
0:00:50.7]} 40. Nc6 {[%clk 0:00:20.8]} 40... a5 {[%clk 0:00:45.1]} 41. Na7
{[%clk 0:00:17.1]} 41... Kg7 {[%clk 0:00:44.1]} 42. Nxb5 {[%clk 0:00:16.6]}
42... Nxb5 {[%clk 0:00:45]} 43. Rb7 {[%clk 0:00:17.3]} 43... Nd6 {[%clk
0:00:44.2]} 44. Rxb6 {[%clk 0:00:17.4]} 44... Ne4 {[%clk 0:00:45.1]} 45. Rb5
{[%clk 0:00:16.9]} 45... Nd2 {[%clk 0:00:45.1]} 46. Kg2 {[%clk 0:00:15.1]} 46...
g5 {[%clk 0:00:44.2]} 47. f3 {[%clk 0:00:15.4]} 47... g4 {[%clk 0:00:42.3]} 48.
fxg4 {[%clk 0:00:16.3]} 48... hxg4 {[%clk 0:00:43.1]} 49. Kf2 {[%clk 0:00:16.4]}
49... Ne4+ {[%clk 0:00:41.7]} 50. Ke1 {[%clk 0:00:16.7]} 50... Ng5 {[%clk
0:00:38.4]} 51. Rxa5 {[%clk 0:00:16.6]} 51... Nf3+ {[%clk 0:00:38.8]} 52. Kf2
{[%clk 0:00:17]} 52... Nxh2 {[%clk 0:00:39.7]} 53. b4 {[%clk 0:00:17.5]} 53...
Nf3 {[%clk 0:00:40.6]} 54. b5 {[%clk 0:00:17.5]} 54... Nd2 {[%clk 0:00:41]} 55.
b6 {[%clk 0:00:18.1]} 55... Ne4+ {[%clk 0:00:41.9]} 56. Ke1 {[%clk 0:00:17.5]}
56... Nd6 {[%clk 0:00:42.8]} 57. Ra7 {[%clk 0:00:17.2]} 57... Nc8 {[%clk
0:00:42.2]} 58. Rb7 {[%clk 0:00:15.8]} 58... Kf6 {[%clk 0:00:41.1]} 59. Rb8
{[%clk 0:00:16.2]} 59... Nd6 {[%clk 0:00:39.4]} 60. Ke2 {[%clk 0:00:14.8]} 60...
Nc4 {[%clk 0:00:38.5]} 61. b7 {[%clk 0:00:14.6]} 61... Nd6 {[%clk 0:00:37.6]}
62. Kd3 {[%clk 0:00:15.1]} 62... Kf5 {[%clk 0:00:37.7]} 63. Kc3 {[%clk
0:00:13.9]} 63... f6 {[%clk 0:00:37.3]} 64. Kb4 {[%clk 0:00:14.2]} 64... Ke4
{[%clk 0:00:37.6]} 65. Kc5 {[%clk 0:00:14.4]} 65... Nxb7+ {[%clk 0:00:37.4]} 66.
Rxb7 {[%clk 0:00:15.3]} 66... Kxe3 {[%clk 0:00:36.6]} 67. Re7 {[%clk 0:00:15.8]}
67... e5 {[%clk 0:00:36.4]} 68. Kxd5 {[%clk 0:00:15.6]} 68... Kf3 {[%clk
0:00:35.8]} 69. dxe5 {[%clk 0:00:15.6]} 69... fxe5 {[%clk 0:00:36.7]} 70. Rxe5
{[%clk 0:00:15.2]} 70... Kxg3 {[%clk 0:00:37.6]} 71. Ke4 {[%clk 0:00:16.1]}
71... Kf2 {[%clk 0:00:37.2]} 72. Kf4 {[%clk 0:00:15]} 72... g3 {[%clk
0:00:36.8]} 73. Ra5 {[%clk 0:00:15.4]} 73... g2 {[%clk 0:00:36.7]} 74. Ra2+
{[%clk 0:00:15.5]} 74... Kg1 {[%clk 0:00:36.2]} 75. Kg3 {[%clk 0:00:15.2]} 75...
Kh1 {[%clk 0:00:36.5]} 76. Rxg2 {[%clk 0:00:05.9]} 1/2-1/2

[Event "*** Titled Tuesday Blitz"]
[Site "Chess.com"]
[Date "2020.04.21"]
[Round "8"]
[White "vaishali2001"]
[Black "Pavalamalli"]
[Result "1/2-1/2"]
[WhiteElo "2483"]
[BlackElo "2236"]
[TimeControl "180+1"]
[EndTime "11:40:21 PDT"]
[Termination "Game drawn by stalemate"]

1. e4 {[%clk 0:03:00.9]} 1... c5 {[%clk 0:02:53.9]} 2. Nf3 {[%clk 0:02:59.3]}
2... e6 {[%clk 0:02:54.1]} 3. d4 {[%clk 0:02:58.9]} 3... cxd4 {[%clk 0:02:53.7]}
4. Nxd4 {[%clk 0:02:59.8]} 4... a6 {[%clk 0:02:54.1]} 5. Be2 {[%clk 0:02:59.5]}
5... Nf6 {[%clk 0:02:49.1]} 6. Nc3 {[%clk 0:02:59.5]} 6... d6 {[%clk 0:02:45.5]}
7. O-O {[%clk 0:02:59.1]} 7... Be7 {[%clk 0:02:44.9]} 8. f4 {[%clk 0:02:58.4]}
8... O-O {[%clk 0:02:44.5]} 9. Be3 {[%clk 0:02:58.7]} 9... Qc7 {[%clk
0:02:44.3]} 10. Kh1 {[%clk 0:02:58.3]} 10... b5 {[%clk 0:02:41]} 11. e5 {[%clk
0:02:43.8]} 11... dxe5 {[%clk 0:02:30.7]} 12. fxe5 {[%clk 0:02:44.7]} 12... Nfd7
{[%clk 0:02:27.7]} 13. Bf3 {[%clk 0:02:38.6]} 13... Bb7 {[%clk 0:02:24.5]} 14.
Bxb7 {[%clk 0:02:10.7]} 14... Qxb7 {[%clk 0:02:23.8]} 15. Bf4 {[%clk 0:01:50.8]}
15... Nc6 {[%clk 0:02:18.8]} 16. Nxc6 {[%clk 0:01:38.4]} 16... Qxc6 {[%clk
0:02:17.2]} 17. a4 {[%clk 0:01:38.3]} 17... b4 {[%clk 0:02:05.3]} 18. Ne2 {[%clk
0:01:36.9]} 18... Nb6 {[%clk 0:02:03.8]} 19. Nd4 {[%clk 0:01:24.1]} 19... Qd7
{[%clk 0:01:45.1]} 20. a5 {[%clk 0:01:14.5]} 20... Nd5 {[%clk 0:01:39.5]} 21.
Qg4 {[%clk 0:01:00.9]} 21... Nxf4 {[%clk 0:01:34.7]} 22. Rxf4 {[%clk 0:01:01.8]}
22... Bc5 {[%clk 0:01:26.5]} 23. Nb3 {[%clk 0:00:57.1]} 23... Qd5 {[%clk
0:01:21.9]} 24. Rc4 {[%clk 0:00:45.4]} 24... Ba7 {[%clk 0:01:16.7]} 25. Qe4
{[%clk 0:00:35.3]} 25... Rac8 {[%clk 0:00:54.5]} 26. Qxd5 {[%clk 0:00:28.3]}
26... exd5 {[%clk 0:00:54.3]} 27. Rxb4 {[%clk 0:00:28.8]} 27... Rxc2 {[%clk
0:00:53.5]} 28. Nd4 {[%clk 0:00:21]} 28... Rxb2 {[%clk 0:00:47.5]} 29. Nc6
{[%clk 0:00:11.4]} 29... Rxb4 {[%clk 0:00:45]} 30. Nxb4 {[%clk 0:00:12.3]} 30...
Bd4 {[%clk 0:00:45]} 31. Rd1 {[%clk 0:00:12.3]} 31... Bxe5 {[%clk 0:00:42.3]}
32. Rxd5 {[%clk 0:00:11.5]} 32... f6 {[%clk 0:00:40.9]} 33. g3 {[%clk
0:00:09.1]} 33... Bc3 {[%clk 0:00:36.3]} 34. Nxa6 {[%clk 0:00:07.4]} 34... Ra8
{[%clk 0:00:36]} 35. Nc7 {[%clk 0:00:05.4]} 35... Rxa5 {[%clk 0:00:34.3]} 36.
Rxa5 {[%clk 0:00:05]} 36... Bxa5 {[%clk 0:00:33.7]} 37. Nd5 {[%clk 0:00:05.9]}
37... Kf7 {[%clk 0:00:33.4]} 38. Kg2 {[%clk 0:00:06.8]} 38... f5 {[%clk
0:00:29.7]} 39. Kf3 {[%clk 0:00:06.6]} 39... g5 {[%clk 0:00:27.3]} 40. h3 {[%clk
0:00:05.5]} 40... Ke6 {[%clk 0:00:23.8]} 41. Ne3 {[%clk 0:00:05.7]} 41... Bb6
{[%clk 0:00:20.4]} 42. Nc4 {[%clk 0:00:04]} 42... Bd4 {[%clk 0:00:20.4]} 43. Nd2
{[%clk 0:00:03.7]} 43... h5 {[%clk 0:00:19.3]} 44. g4 {[%clk 0:00:03.4]} 44...
fxg4+ {[%clk 0:00:18.8]} 45. hxg4 {[%clk 0:00:04.3]} 45... h4 {[%clk 0:00:19.3]}
46. Ne4 {[%clk 0:00:04.7]} 46... Bf6 {[%clk 0:00:19.2]} 47. Nf2 {[%clk
0:00:02.8]} 47... Be7 {[%clk 0:00:18.9]} 48. Ne4 {[%clk 0:00:03]} 48... Kd5
{[%clk 0:00:18.2]} 49. Nf2 {[%clk 0:00:02.7]} 49... Kd4 {[%clk 0:00:18.3]} 50.
Ne4 {[%clk 0:00:03.2]} 50... Kd3 {[%clk 0:00:17.6]} 51. Nxg5 {[%clk 0:00:02.3]}
51... Bxg5 {[%clk 0:00:16.8]} 52. Kg2 {[%clk 0:00:02.8]} 52... Ke4 {[%clk
0:00:17.2]} 53. Kh1 {[%clk 0:00:03.7]} 53... Kf3 {[%clk 0:00:17.4]} 54. Kh2
{[%clk 0:00:03.8]} 54... Kf4 {[%clk 0:00:17]} 55. Kh1 {[%clk 0:00:04.7]} 55...
Kf3 {[%clk 0:00:17.4]} 56. Kh2 {[%clk 0:00:05.6]} 56... Kf2 {[%clk 0:00:17.4]}
57. Kh1 {[%clk 0:00:06.5]} 57... Kg3 {[%clk 0:00:17.6]} 58. Kg1 {[%clk
0:00:06.5]} 58... h3 {[%clk 0:00:16.6]} 59. Kh1 {[%clk 0:00:07.4]} 59... Kh4
{[%clk 0:00:12.2]} 60. Kg1 {[%clk 0:00:08.3]} 60... Kg3 {[%clk 0:00:12.3]} 61.
Kh1 {[%clk 0:00:09.2]} 61... Bf4 {[%clk 0:00:10.7]} 62. Kg1 {[%clk 0:00:10.1]}
62... h2+ {[%clk 0:00:10.3]} 63. Kh1 {[%clk 0:00:11]} 63... Kh3 {[%clk
0:00:08.9]} 64. g5 {[%clk 0:00:10.8]} 64... Bxg5 {[%clk 0:00:09]} 1/2-1/2

[Event "*** Titled Tuesday Blitz"]
[Site "Chess.com"]
[Date "2020.04.21"]
[Round "8"]
[White "SloLev"]
[Black "Igor_Lysyj"]
[Result "0-1"]
[WhiteElo "2524"]
[BlackElo "2780"]
[TimeControl "180+1"]
[EndTime "11:40:27 PDT"]
[Termination "Igor_Lysyj won by resignation"]

1. e4 {[%clk 0:03:00.9]} 1... e5 {[%clk 0:02:59.3]} 2. Nf3 {[%clk 0:03:00.6]}
2... Nc6 {[%clk 0:02:59]} 3. d4 {[%clk 0:03:01]} 3... exd4 {[%clk 0:02:58.5]} 4.
Nxd4 {[%clk 0:03:01.9]} 4... Nf6 {[%clk 0:02:58]} 5. Nc3 {[%clk 0:03:01.6]} 5...
Bb4 {[%clk 0:02:57.1]} 6. Nxc6 {[%clk 0:03:01.6]} 6... bxc6 {[%clk 0:02:56.7]}
7. Bd3 {[%clk 0:03:02]} 7... O-O {[%clk 0:02:54.1]} 8. O-O {[%clk 0:03:02]} 8...
d5 {[%clk 0:02:53.9]} 9. exd5 {[%clk 0:03:02.9]} 9... cxd5 {[%clk 0:02:53.4]}
10. Bg5 {[%clk 0:03:03.4]} 10... c6 {[%clk 0:02:51.9]} 11. Qf3 {[%clk
0:03:02.5]} 11... Bd6 {[%clk 0:02:46.8]} 12. Bxf6 {[%clk 0:03:01.5]} 12... Qxf6
{[%clk 0:02:46.3]} 13. Qxf6 {[%clk 0:03:01.2]} 13... gxf6 {[%clk 0:02:45.9]} 14.
Ne2 {[%clk 0:03:02.1]} 14... Be5 {[%clk 0:02:40]} 15. c3 {[%clk 0:02:51.9]}
15... Rb8 {[%clk 0:02:38.4]} 16. Rab1 {[%clk 0:02:51.1]} 16... c5 {[%clk
0:02:33.4]} 17. b4 {[%clk 0:02:45.9]} 17... c4 {[%clk 0:01:41.3]} 18. Bc2 {[%clk
0:02:42.7]} 18... Re8 {[%clk 0:01:41.4]} 19. Rfe1 {[%clk 0:02:39.4]} 19... Bg4
{[%clk 0:01:38.1]} 20. f3 {[%clk 0:02:38]} 20... Bh5 {[%clk 0:01:37.5]} 21. Kf2
{[%clk 0:02:27.3]} 21... Bg6 {[%clk 0:01:29.5]} 22. Bxg6 {[%clk 0:02:26.9]}
22... hxg6 {[%clk 0:01:29.3]} 23. a4 {[%clk 0:02:27.8]} 23... f5 {[%clk
0:01:24.8]} 24. Red1 {[%clk 0:02:05.9]} 24... Rbd8 {[%clk 0:01:16.2]} 25. h3
{[%clk 0:02:05]} 25... f4 {[%clk 0:01:12.3]} 26. a5 {[%clk 0:01:57.8]} 26... a6
{[%clk 0:01:06.2]} 27. b5 {[%clk 0:01:53.9]} 27... axb5 {[%clk 0:00:40.5]} 28.
Rxb5 {[%clk 0:01:54.8]} 28... d4 {[%clk 0:00:40.3]} 29. Nxd4 {[%clk 0:01:31.3]}
29... Bf6 {[%clk 0:00:39.2]} 30. a6 {[%clk 0:01:20.7]} 30... Ra8 {[%clk
0:00:35.5]} 31. Rb6 {[%clk 0:01:20.9]} 31... Bh4+ {[%clk 0:00:31.7]} 32. Kf1
{[%clk 0:01:15.5]} 32... Re3 {[%clk 0:00:30.6]} 33. Ne2 {[%clk 0:01:11.8]} 33...
Rae8 {[%clk 0:00:28]} 34. Rb2 {[%clk 0:00:55.4]} 34... Kg7 {[%clk 0:00:25.9]}
35. a7 {[%clk 0:00:40.2]} 35... Ra8 {[%clk 0:00:25.1]} 36. Rd7 {[%clk
0:00:36.3]} 36... Rd3 {[%clk 0:00:17.1]} 37. Nd4 {[%clk 0:00:25.3]} 37... Rxc3
{[%clk 0:00:13.9]} 38. Rb8 {[%clk 0:00:17]} 38... Re3 {[%clk 0:00:13.3]} 39. g3
{[%clk 0:00:11.7]} 39... fxg3 {[%clk 0:00:11.4]} 40. Rxa8 {[%clk 0:00:09.5]}
40... Re1+ {[%clk 0:00:11.3]} 41. Kg2 {[%clk 0:00:07]} 41... Rd1 {[%clk
0:00:11.1]} 42. Rg8+ {[%clk 0:00:01.2]} 42... Kxg8 {[%clk 0:00:09.6]} 43. a8=Q+
{[%clk 0:00:02.1]} 43... Kg7 {[%clk 0:00:09.7]} 44. Ne2 {[%clk 0:00:01.1]} 44...
Rxd7 {[%clk 0:00:08.5]} 45. Qa1+ {[%clk 0:00:01.5]} 45... Bf6 {[%clk 0:00:07.6]}
46. Qc1 {[%clk 0:00:02.4]} 46... c3 {[%clk 0:00:06.5]} 47. Nxg3 {[%clk
0:00:02.6]} 47... Be5 {[%clk 0:00:04.9]} 48. Ne4 {[%clk 0:00:01.8]} 48... Rb7
{[%clk 0:00:03.8]} 49. Nxc3 {[%clk 0:00:01.2]} 49... Rc7 {[%clk 0:00:03.8]} 50.
Qe3 {[%clk 0:00:01.7]} 50... Bxc3 {[%clk 0:00:03.3]} 51. Qe4 {[%clk 0:00:02.2]}
51... Bf6 {[%clk 0:00:03.1]} 52. h4 {[%clk 0:00:02.5]} 52... Rd7 {[%clk
0:00:03.2]} 53. Kh3 {[%clk 0:00:02.8]} 53... Rd4 {[%clk 0:00:03]} 54. Qe3 {[%clk
0:00:03.2]} 54... Rxh4+ {[%clk 0:00:03.4]} 55. Kg2 {[%clk 0:00:04.1]} 55... Rh5
{[%clk 0:00:03.9]} 56. Qe2 {[%clk 0:00:04.3]} 56... Rg5+ {[%clk 0:00:04.4]} 57.
Kf1 {[%clk 0:00:04.5]} 57... Rf5 {[%clk 0:00:04.8]} 58. Qd3 {[%clk 0:00:04.6]}
58... Rf4 {[%clk 0:00:04.4]} 59. Qb3 {[%clk 0:00:04.9]} 59... Rd4 {[%clk
0:00:04.3]} 60. Kg2 {[%clk 0:00:05.2]} 60... Rf4 {[%clk 0:00:04]} 61. Kg3 {[%clk
0:00:05.5]} 61... g5 {[%clk 0:00:04.2]} 62. Kg2 {[%clk 0:00:06]} 62... Be5
{[%clk 0:00:03.8]} 63. Qd3 {[%clk 0:00:05.8]} 63... f6 {[%clk 0:00:03.9]} 64.
Qb3 {[%clk 0:00:06.1]} 64... Kg6 {[%clk 0:00:03.8]} 65. Qb7 {[%clk 0:00:06.5]}
65... Rh4 {[%clk 0:00:03.4]} 66. Qd7 {[%clk 0:00:05.4]} 66... Rh2+ {[%clk
0:00:03.2]} 67. Kg1 {[%clk 0:00:05.9]} 67... Rb2 {[%clk 0:00:03.7]} 68. Qe8+
{[%clk 0:00:05.9]} 68... Kf5 {[%clk 0:00:03.9]} 69. Qd7+ {[%clk 0:00:06.2]}
69... Kf4 {[%clk 0:00:04.2]} 70. Qg4+ {[%clk 0:00:06.6]} 70... Ke3 {[%clk
0:00:04.4]} 71. Qe4+ {[%clk 0:00:07.5]} 71... Kd2 {[%clk 0:00:04.5]} 72. Kg2
{[%clk 0:00:07.5]} 72... Kc3+ {[%clk 0:00:04.6]} 73. Kh3 {[%clk 0:00:07.8]}
73... Rh2+ {[%clk 0:00:03.9]} 0-1